bitfinex/quotes_BTCUSD_20251120
["timestamp","ask_amount","ask_price","bid_price","bid_amount"]
[1763672800008,0.01751,86945.0,86938.0,0.01481]
[1763672800469,0.01751,86945.0,86932.0,0.01481]
[1763672800697,0.01751,86945.0,86928.0,0.07957708]
[1763672801333,0.01751,86945.0,86928.0,0.15825452]
[1763672801754,0.01651,86945.0,86928.0,0.15825452]
[1763672801964,0.01851,86945.0,86928.0,0.15825452]
[1763672802146,0.0009147,86929.0,86928.0,0.11164708]
[1763672802571,0.0009147,86929.0,86928.0,0.13104183]
[1763672805426,0.0009147,86929.0,86928.0,0.0212]
[1763672805637,0.0009147,86929.0,86928.0,0.05327]
[1763672807699,0.0009147,86929.0,86923.0,0.12746621]
[1763672807929,0.01604,86943.0,86928.0,0.0212]
[1763672808141,0.01604,86943.0,86929.0,0.01380436]
[1763672808344,0.01604,86943.0,86928.0,0.0212]
[1763672808784,0.01979,86929.0,86921.0,0.33791731]
[1763672809190,0.02991,86939.0,86921.0,0.33791731]
[1763672809596,0.02991,86939.0,86922.0,0.01380548]
[1763672810846,0.00650042,86938.0,86922.0,0.01380548]
[1763672811465,0.01805428,86935.0,86922.0,0.01380548]
[1763672811618,0.01805428,86935.0,86921.0,0.01491731]
[1763672811855,0.01805428,86935.0,86925.0,0.11476708]
[1763672812067,0.01805428,86935.0,86921.0,0.01491731]
[1763672812273,0.01805428,86935.0,86925.0,0.11476708]
[1763672812717,0.01805428,86935.0,86925.0,0.11314235]
[1763672814581,0.01805428,86935.0,86934.0,0.0212]
[1763672814989,0.00110387,86935.0,86926.0,0.01380484]
[1763672815207,0.01604,86946.0,86926.0,0.01380484]
[1763672815404,0.01604,86946.0,86926.0,0.33680484]
[1763672815616,0.01604,86946.0,86926.0,0.323]
[1763672815827,0.01604,86946.0,86927.0,0.01380468]
[1763672816029,0.01604,86946.0,86930.0,0.04133617]
[1763672816306,0.01604,86946.0,86931.0,0.01380405]
[1763672816506,0.01604,86946.0,86931.0,0.05514022]
[1763672816714,0.06946812,86969.0,86931.0,0.05514022]
[1763672816715,0.02991,86959.0,86939.0,0.11476708]
[1763672816914,0.001,86946.0,86939.0,0.11476708]
[1763672817815,0.002,86946.0,86939.0,0.11476708]
[1763672818046,0.02991,86959.0,86939.0,0.11476708]
[1763672818233,0.01805259,86945.0,86939.0,0.11476708]
[1763672820320,0.01805259,86945.0,86939.0,0.15610325]
[1763672820739,0.01805259,86945.0,86939.0,0.14148068]
[1763672821153,0.00126149,86940.0,86939.0,0.14148068]
[1763672821361,0.00126149,86940.0,86939.0,0.10014451]
[1763672822139,0.00126149,86940.0,86934.0,0.06195276]
[1763672822497,0.01805259,86945.0,86939.0,0.04139197]
[1763672822716,0.05210249,86966.0,86939.0,0.11476708]
[1763672822898,0.00126149,86940.0,86939.0,0.11476708]
[1763672823134,0.00126149,86940.0,86939.0,0.02876708]
[1763672823329,0.01931464,86940.0,86939.0,0.02876708]
[1763672824707,0.04012464,86940.0,86936.0,0.04139197]
[1763672824908,0.02081,86937.0,86928.0,0.04139197]
[1763672825110,0.01613,86929.0,86926.0,0.04139197]
[1763672825335,0.0170447,86929.0,86927.0,0.04139197]
[1763672825491,0.01613,86929.0,86927.0,0.04139197]
[1763672826157,0.01613,86929.0,86921.0,0.01491731]
[1763672826158,0.01613,86929.0,86928.0,0.04139197]
[1763672826962,0.06846,86929.0,86924.0,0.04139197]
[1763672827201,0.075306,86929.0,86922.0,0.04139197]
[1763672827393,0.043786,86929.0,86921.0,0.04149928]
[1763672827616,0.022976,86929.0,86921.0,0.04149928]
[1763672828074,0.01613,86944.0,86928.0,0.03481]
[1763672828238,0.001,86929.0,86928.0,0.01481]
[1763672828386,0.03152,86940.0,86928.0,0.01481]
[1763672828577,0.01905537,86929.0,86928.0,0.01481]
[1763672828781,0.002,86929.0,86928.0,0.01481]
[1763672828981,0.002,86929.0,86921.0,0.00010731]
[1763672828982,0.02181,86929.0,86923.0,0.05620197]
[1763672829228,0.03886555,86929.0,86923.0,0.04139197]
[1763672829426,0.03886555,86929.0,86923.0,0.05620197]
[1763672829641,0.03886555,86929.0,86921.0,0.00010731]
[1763672829642,0.02081,86924.0,86921.0,0.00010731]
[1763672829835,0.07291249,86922.0,86921.0,0.00010731]
[1763672830059,0.05210249,86916.0,86893.0,0.04139197]
[1763672830256,0.02081,86895.0,86892.0,0.01939197]
[1763672830457,0.11476708,86909.0,86878.0,0.07676276]
[1763672830458,0.01613,86889.0,86878.0,0.07676276]
[1763672830657,0.01613,86889.0,86878.0,0.01481]
[1763672830921,0.01613,86889.0,86881.0,0.11476708]
[1763672831330,0.01613,86889.0,86878.0,0.01481]
[1763672831984,0.03152,86888.0,86874.0,0.0013048]
[1763672832204,0.03694,86875.0,86874.0,0.0013048]
[1763672832406,0.037781,86888.0,86874.0,0.0013048]
[1763672833220,0.01613,86875.0,86874.0,0.0013048]
[1763672833429,0.037781,86888.0,86874.0,0.0013048]
[1763672834041,0.03152,86888.0,86874.0,0.0013048]
[1763672834199,0.01713,86889.0,86874.0,0.0013048]
[1763672834402,0.01613,86889.0,86874.0,0.0013048]
[1763672834835,0.03152,86894.0,86874.0,0.0013048]
[1763672834836,0.002,86888.0,86882.0,0.11476708]
[1763672834990,0.001,86888.0,86883.0,0.02862167]
[1763672835193,0.001,86888.0,86887.0,0.02]
[1763672835401,0.001,86889.0,86887.0,0.02]
[1763672835807,0.001,86889.0,86888.0,0.06358088]
[1763672836050,0.001,86889.0,86888.0,0.04977]
[1763672836252,0.001,86889.0,86888.0,0.02]
[1763672836858,0.01613,86902.0,86888.0,0.02]
[1763672837067,0.01613,86902.0,86883.0,0.01481]
[1763672837230,0.04765,86902.0,86883.0,0.01481]
[1763672837446,0.03792324,86901.0,86882.0,0.08464233]
[1763672838549,0.03892324,86901.0,86882.0,0.08464233]
[1763672838786,0.03992324,86901.0,86882.0,0.08464233]
[1763672839192,0.03152,86900.0,86882.0,0.08464233]
[1763672839395,0.01806208,86897.0,86882.0,0.08464233]
[1763672840736,0.03152,86896.0,86882.0,0.00047206]
[1763672840914,0.03152,86896.0,86883.0,0.11476708]
[1763672844109,0.03694,86884.0,86882.0,0.00047206]
[1763672844512,0.03694,86884.0,86869.0,0.27777686]
[1763672844711,0.03694,86884.0,86869.0,0.32039642]
[1763672844911,0.03694,86884.0,86870.0,0.03459774]
[1763672845407,0.01613,86884.0,86870.0,0.03459774]
[1763672845611,0.01806208,86897.0,86870.0,0.03459774]
[1763672845887,0.01613,86889.0,86870.0,0.03459774]
[1763672846278,0.03152,86888.0,86870.0,0.03459774]
[1763672846481,0.01613,86889.0,86871.0,0.0222]
[1763672847125,0.01613,86889.0,86871.0,0.3452]
[1763672847537,0.01813,86889.0,86871.0,0.323]
[1763672847740,0.04965,86889.0,86870.0,0.03459774]
[1763672848030,0.04965,86889.0,86869.0,0.00041717]
[1763672848235,0.03152,86888.0,86869.0,0.00041717]
[1763672849385,0.03694,86870.0,86869.0,0.00041717]
[1763672850033,0.035754,86870.0,86869.0,0.00041717]
[1763672850676,0.067314,86870.0,86869.0,0.00041717]
[1763672851786,0.03678,86855.0,86847.0,0.11476708]
[1763672852006,0.03678,86855.0,86847.0,0.11513124]
[1763672852852,0.01806804,86854.0,86847.0,0.11513124]
[1763672853543,0.01806804,86854.0,86853.0,0.02102]
[1763672853988,0.0361358,86854.0,86853.0,0.02102]
[1763672854620,0.0361358,86854.0,86847.0,0.11513124]
[1763672855045,0.0361358,86854.0,86847.0,0.00036416]
[1763672855247,0.00822358,86853.0,86847.0,0.00036416]
[1763672855645,0.0361358,86854.0,86848.0,0.11476708]
[1763672855881,0.0361358,86854.0,86853.0,0.02102]
[1763672856199,0.0361358,86854.0,86848.0,0.11476708]
[1763672856419,0.0361358,86854.0,86849.0,0.01381708]
[1763672856626,0.0361358,86854.0,86848.0,0.11476708]
[1763672857242,0.0361358,86854.0,86853.0,0.02102]
[1763672857650,0.0361358,86854.0,86849.0,0.01381708]
[1763672858437,0.0361358,86854.0,86853.0,0.001]
[1763672859137,0.0571858,86854.0,86853.0,0.001]
[1763672859339,0.0880758,86854.0,86853.0,0.001]
[1763672859560,0.0361358,86854.0,86853.0,0.001]
[1763672859961,0.0361358,86854.0,86851.0,0.00809]
[1763672860293,0.0361358,86854.0,86851.0,0.04947452]
[1763672861217,0.0361358,86854.0,86852.0,0.04138452]
[1763672862097,0.0361358,86854.0,86853.0,0.03483644]
[1763672862507,0.0361358,86854.0,86853.0,0.05842644]
[1763672862782,0.01806776,86854.0,86853.0,0.05842644]
[1763672863575,0.01806776,86854.0,86853.0,0.10079346]
[1763672863761,0.01806776,86854.0,86853.0,0.10179346]
[1763672864061,0.01806776,86854.0,86853.0,0.05942644]
[1763672864270,0.01512,86867.0,86853.0,0.06042644]
[1763672864473,0.01521,86876.0,86866.0,0.02924]
[1763672864647,0.01521,86876.0,86866.0,0.02949257]
[1763672865255,0.01521,86876.0,86866.0,0.00847257]
[1763672865854,0.01521,86876.0,86861.0,0.09323965]
[1763672866044,0.01806663,86874.0,86861.0,0.09323965]
[1763672866745,0.03089,86873.0,86860.0,0.04136268]
[1763672867120,0.03089,86873.0,86858.0,0.04136268]
[1763672867270,0.03089,86873.0,86847.0,0.01573416]
[1763672867271,0.02105,86859.0,86857.0,0.04136268]
[1763672867456,0.02105,86859.0,86856.0,0.04136268]
[1763672867912,0.02105,86859.0,86858.0,0.00025261]
[1763672868513,0.05194,86859.0,86858.0,0.00025261]
[1763672868964,0.01521,86861.0,86858.0,0.00025261]
[1763672869947,0.01521,86866.0,86858.0,0.00025261]
[1763672870460,0.02105,86859.0,86858.0,0.00025261]
[1763672870664,0.05194,86859.0,86858.0,0.00025261]
[1763672871940,0.058655,86859.0,86858.0,0.00025261]
[1763672872992,0.027765,86859.0,86842.0,0.03097945]
[1763672873209,0.01521,86848.0,86843.0,0.03097945]
[1763672873615,0.03089,86858.0,86843.0,0.03097945]
[1763672873816,0.01521,86853.0,86843.0,0.03097945]
[1763672874618,0.03089,86852.0,86843.0,0.03097945]
[1763672875210,0.03089,86852.0,86842.0,4.724e-05]
[1763672875418,0.323,86868.0,86843.0,0.01512]
[1763672875419,0.05210249,86868.0,86843.0,0.01512]
[1763672875625,0.01928649,86867.0,86843.0,0.01512]
[1763672875970,0.01242,86866.0,86843.0,0.01512]
[1763672877045,0.01242,86866.0,86844.0,0.0306]
[1763672877259,0.01242,86866.0,86850.0,0.46672359]
[1763672877470,0.03089,86865.0,86850.0,0.46672359]
[1763672878110,0.01521,86876.0,86864.0,0.03614]
[1763672878294,0.03089,86887.0,86865.0,0.02102]
[1763672878723,0.0180674,86875.0,86868.0,0.46672359]
[1763672879434,0.01806705,86874.0,86864.0,0.01512]
[1763672880281,0.01806705,86874.0,86860.0,0.45984359]
[1763672880884,0.01806705,86874.0,86860.0,0.49044359]
[1763672881387,0.01806705,86874.0,86861.0,0.0306]
[1763672881996,0.01806705,86874.0,86862.0,0.06671634]
[1763672882333,0.01806705,86874.0,86873.0,0.03512]
[1763672883150,0.01806705,86874.0,86873.0,0.06615]
[1763672883349,0.0180674,86875.0,86873.0,0.06615]
[1763672883647,0.0180674,86875.0,86874.0,0.05097]
[1763672883648,0.00041685,86875.0,86874.0,0.05097]
[1763672884241,0.00041685,86875.0,86874.0,0.06378028]
[1763672884467,0.00041685,86875.0,86874.0,0.05097]
[1763672884680,0.00041685,86875.0,86874.0,0.11549249]
[1763672884880,0.00041685,86875.0,86874.0,0.43849249]
[1763672885088,0.00041685,86875.0,86874.0,0.52114289]
[1763672885298,0.00041685,86875.0,86874.0,0.50360149]
[1763672885908,0.00041685,86875.0,86874.0,0.50460149]
[1763672886084,0.00130492,86884.0,86875.0,0.37510249]
[1763672886318,0.00130492,86884.0,86883.0,0.08722249]
[1763672886517,0.00130492,86884.0,86883.0,0.46161109]
[1763672886700,0.00130492,86884.0,86883.0,0.49264109]
[1763672887963,0.00130492,86884.0,86883.0,0.1175386]
[1763672888138,0.00130492,86884.0,86883.0,0.06715]
[1763672888559,0.00130492,86884.0,86883.0,0.06815]
[1763672888745,0.00130492,86884.0,86883.0,0.06715]
[1763672889282,0.00130492,86884.0,86883.0,0.06815]
[1763672889634,0.0180612,86923.0,86883.0,0.25918412]
[1763672889842,0.0180612,86923.0,86915.0,0.11476708]
[1763672889968,0.01605,86939.0,86922.0,0.03286]
[1763672890170,0.01805783,86934.0,86922.0,0.03286]
[1763672890595,0.01805783,86934.0,86922.0,0.01292]
[1763672891011,0.001,86923.0,86922.0,4.724e-05]
[1763672891618,0.03257,86933.0,86922.0,4.724e-05]
[1763672891824,0.01805805,86928.0,86922.0,4.724e-05]
[1763672892027,0.02152,86923.0,86922.0,4.724e-05]
[1763672892416,0.05409,86923.0,86922.0,4.724e-05]
[1763672893320,0.02152,86923.0,86922.0,4.724e-05]
[1763672893554,0.02252,86923.0,86922.0,4.724e-05]
[1763672893895,0.02152,86923.0,86922.0,4.724e-05]
[1763672894091,0.02252,86923.0,86922.0,4.724e-05]
[1763672894541,0.02352,86923.0,86922.0,4.724e-05]
[1763672895085,0.02352,86923.0,86906.0,0.03103]
[1763672895283,0.002,86923.0,86910.0,0.46672359]
[1763672895413,0.00323031,86923.0,86910.0,0.46672359]
[1763672895618,0.002,86923.0,86910.0,0.46672359]
[1763672895814,0.001,86923.0,86910.0,0.46672359]
[1763672896023,0.01805805,86928.0,86910.0,0.51969232]
[1763672896220,0.001,86923.0,86910.0,0.51969232]
[1763672896426,0.002,86923.0,86910.0,0.51969232]
[1763672896833,0.05210249,86938.0,86911.0,0.36921]
[1763672897034,0.01805889,86931.0,86920.0,0.46672359]
[1763672897238,0.001,86928.0,86920.0,0.50761761]
[1763672897471,0.001,86928.0,86921.0,0.03103]
[1763672897665,0.001,86923.0,86921.0,0.03103]
[1763672897837,0.001,86923.0,86911.0,0.01518]
[1763672898028,0.0089,86927.0,86915.0,0.11476708]
[1763672898228,0.0089,86927.0,86917.0,0.46672359]
[1763672898997,0.001,86923.0,86917.0,0.46672359]
[1763672899214,0.0089,86927.0,86917.0,0.46672359]
[1763672899567,0.001,86923.0,86911.0,0.01518]
[1763672899783,0.01367,86947.0,86922.0,0.01994]
[1763672899981,0.01367,86947.0,86937.0,0.46672359]
[1763672900206,0.01367,86947.0,86932.0,0.11476708]
[1763672900405,0.01367,86947.0,86933.0,0.02217071]
[1763672900609,0.01805586,86944.0,86930.0,0.46672359]
[1763672900969,0.03611183,86944.0,86930.0,0.46672359]
[1763672901170,0.00148255,86931.0,86930.0,0.46677079]
[1763672901368,0.00148255,86931.0,86930.0,4.72e-05]
[1763672901574,0.00148255,86931.0,86930.0,0.0199872]
[1763672901774,0.00148255,86931.0,86930.0,4.72e-05]
[1763672902196,0.00148255,86931.0,86922.0,0.323]
[1763672902197,0.00148255,86931.0,86922.0,0.2980472]
[1763672902406,0.01367,86938.0,86922.0,4.715e-05]
[1763672902700,0.02190518,86938.0,86922.0,4.715e-05]
[1763672902895,0.02190518,86938.0,86928.0,0.46672359]
[1763672903133,0.01367,86938.0,86928.0,0.46672359]
[1763672903480,0.01467,86938.0,86928.0,0.46672359]
[1763672903683,0.02152,86929.0,86922.0,4.715e-05]
[1763672903902,0.01367,86923.0,86922.0,4.715e-05]
[1763672906758,0.03519,86923.0,86922.0,4.715e-05]
[1763672907269,0.01367,86938.0,86922.0,0.01998715]
[1763672907708,0.00123031,86923.0,86922.0,0.01998715]
[1763672907922,0.00123031,86923.0,86922.0,0.05101715]
[1763672908128,0.00123031,86923.0,86922.0,0.06482263]
[1763672908762,0.00123031,86923.0,86922.0,0.05101715]
[1763672908968,0.00123031,86923.0,86922.0,0.06482263]
[1763672909186,0.001,86938.0,86922.0,0.38782263]
[1763672909391,0.002,86938.0,86937.0,0.45583708]
[1763672909609,0.002,86938.0,86937.0,0.53863552]
[1763672909809,0.001,86938.0,86937.0,0.60048289]
[1763672910021,0.001,86938.0,86937.0,0.55230552]
[1763672910297,0.03257,86968.0,86938.0,0.323]
[1763672910540,0.03257,86968.0,86949.0,0.03214]
[1763672910957,0.01576,86954.0,86947.0,0.03091747]
[1763672911128,0.01576,86954.0,86945.0,0.03091747]
[1763672911575,0.01576,86954.0,86946.0,0.03091747]
[1763672912525,0.01825242,86950.0,86948.0,0.03091747]
[1763672912781,0.01925242,86950.0,86948.0,0.03091747]
[1763672913234,0.02025242,86950.0,86948.0,0.03091747]
[1763672913425,0.02025242,86950.0,86945.0,4.715e-05]
[1763672913426,0.01925242,86950.0,86946.0,0.03091747]
[1763672913628,0.01925242,86950.0,86947.0,0.03091747]
[1763672913955,0.01807842,86950.0,86947.0,0.03091747]
[1763672914191,0.01907842,86950.0,86949.0,0.01964]
[1763672914388,0.01807842,86950.0,86949.0,0.05055747]
[1763672914629,0.01807842,86950.0,86949.0,0.09480826]
[1763672914805,0.01907842,86950.0,86949.0,0.09480826]
[1763672915007,0.02007842,86950.0,86949.0,0.09480826]
[1763672915448,0.01992972,86950.0,86949.0,0.06389079]
[1763672915832,0.01992972,86950.0,86949.0,0.01964]
[1763672916045,0.01892972,86950.0,86945.0,0.04127044]
[1763672916208,0.01807842,86950.0,86949.0,0.03098254]
[1763672916414,0.01807842,86950.0,86949.0,0.03098218]
[1763672917126,0.01807842,86950.0,86945.0,0.03188]
[1763672917448,0.01807842,86950.0,86949.0,0.03098208]
[1763672918076,0.01807842,86950.0,86949.0,0.05062208]
[1763672918478,0.01807842,86950.0,86949.0,0.01964]
[1763672918954,0.01807842,86950.0,86949.0,0.03098579]
[1763672919128,0.03837842,86950.0,86948.0,0.03098579]
[1763672919327,0.03837842,86950.0,86949.0,0.03098579]
[1763672919525,0.04982842,86950.0,86949.0,0.03098579]
[1763672919753,0.07871326,86950.0,86949.0,0.03098579]
[1763672919929,0.07871326,86950.0,86948.0,4.724e-05]
[1763672920244,0.0203,86949.0,86948.0,4.724e-05]
[1763672922473,0.01807842,86950.0,86948.0,4.724e-05]
[1763672922474,0.01807842,86950.0,86948.0,0.03103303]
[1763672922727,2.6e-05,86950.0,86948.0,0.03103303]
[1763672922873,0.03917213,86949.0,86948.0,4.724e-05]
[1763672923298,0.05286978,86949.0,86948.0,4.724e-05]
[1763672923500,0.02111978,86949.0,86938.0,0.04286797]
[1763672923697,0.02111978,86949.0,86947.0,0.030999]
[1763672923698,0.02042513,86949.0,86947.0,0.030999]
[1763672924119,0.0203,86948.0,86947.0,0.030999]
[1763672924311,0.0203,86948.0,86938.0,0.78046927]
[1763672924527,0.0203,86948.0,86937.0,0.12989708]
[1763672925197,0.00012513,86949.0,86937.0,0.12989708]
[1763672926068,0.01805246,86947.0,86937.0,0.12989708]
[1763672926616,0.01805246,86947.0,86924.0,0.3433]
[1763672926617,0.0203,86938.0,86925.0,0.08246316]
[1763672926815,0.0203,86936.0,86923.0,0.01122]
[1763672927018,0.03175,86946.0,86924.0,0.03188]
[1763672928614,0.03175,86946.0,86930.0,0.78046927]
[1763672928994,0.03275,86946.0,86931.0,0.01380405]
[1763672929236,0.03375,86946.0,86931.0,0.01380405]
[1763672929440,0.03375,86946.0,86931.0,0.04568405]
[1763672929441,0.00028382,86932.0,86931.0,0.04568405]
[1763672929594,0.00028382,86946.0,86931.0,0.04568405]
[1763672929789,0.001,86946.0,86931.0,0.06532405]
[1763672930014,0.002,86946.0,86931.0,0.06532405]
[1763672930628,0.002,86946.0,86931.0,0.03732405]
[1763672931005,0.001,86946.0,86931.0,0.0511281]
[1763672931207,0.001,86946.0,86936.0,0.78046927]
[1763672931408,0.001,86946.0,86945.0,0.00781]
[1763672931927,0.001,86946.0,86937.0,0.01380309]
[1763672931928,0.05349141,86946.0,86937.0,0.01380309]
[1763672932128,0.0203,86938.0,86920.0,0.11476708]
[1763672932330,0.01380417,86945.0,86925.0,0.01805246]
[1763672932548,0.001,86946.0,86925.0,0.01805246]
[1763672932751,0.03175,86945.0,86925.0,0.01805246]
[1763672932927,0.03175,86945.0,86924.0,0.05314502]
[1763672933540,0.03175,86945.0,86923.0,0.04579956]
[1763672933541,0.12857125,86944.0,86923.0,0.04579956]
[1763672933734,0.01380417,86944.0,86923.0,0.01122]
[1763672933952,0.03175,86943.0,86923.0,0.01122]
[1763672934154,0.001,86945.0,86931.0,0.11476708]
[1763672934473,0.001,86945.0,86932.0,0.01380389]
[1763672934783,0.001,86945.0,86944.0,0.00781]
[1763672935133,0.001,86945.0,86944.0,0.02745]
[1763672935561,0.01805246,86947.0,86944.0,0.02745]
[1763672935764,0.001,86945.0,86944.0,0.02745]
[1763672935973,0.37510249,86966.0,86945.0,0.11476708]
[1763672936173,0.37551912,86966.0,86948.0,0.01964]
[1763672936379,0.32341663,86966.0,86948.0,0.01964]
[1763672936559,0.01805241,86961.0,86948.0,0.01964]
[1763672937242,0.05210249,86965.0,86948.0,0.01964]
[1763672937852,0.00041663,86966.0,86948.0,0.01658573]
[1763672938239,0.05210249,86965.0,86948.0,0.01658573]
[1763672938445,0.05310249,86965.0,86948.0,0.01658573]
[1763672938611,0.001,86961.0,86948.0,0.01658573]
[1763672938828,0.05210249,86965.0,86948.0,0.01658573]
[1763672939228,0.01805203,86961.0,86948.0,0.04846573]
[1763672939557,0.01805203,86961.0,86949.0,0.0166015]
[1763672939724,0.01805203,86961.0,86949.0,0.03188]
[1763672939930,0.00056751,86950.0,86949.0,0.03188]
[1763672940419,0.00056751,86950.0,86949.0,0.06617]
[1763672940839,0.00056751,86950.0,86949.0,0.47163316]
[1763672941043,0.01905203,86961.0,86951.0,0.05210249]
[1763672941248,0.01408,87011.0,86971.0,0.323]
[1763672941479,0.01408,87011.0,86979.0,0.03429]
[1763672941684,0.01408,87011.0,86989.0,0.03429]
[1763672942183,0.0014604,86990.0,86989.0,0.06617]
[1763672943531,0.0014604,86990.0,86989.0,0.06666]
[1763672943918,0.0014604,86990.0,86989.0,0.074326]
[1763672944116,0.373,87028.0,86997.0,0.11476708]
[1763672944388,0.373,87028.0,86999.0,0.02118]
[1763672944799,0.01804479,87021.0,86999.0,0.02118]
[1763672945000,0.01804479,87021.0,86998.0,0.01531]
[1763672945001,0.01804479,87021.0,87000.0,0.03237]
[1763672945926,0.01904479,87021.0,87000.0,0.03237]
[1763672946139,0.01804479,87021.0,87000.0,0.03237]
[1763672946563,0.01904479,87021.0,87000.0,0.03237]
[1763672946791,0.01804344,87016.0,87000.0,0.02676]
[1763672947000,0.01804344,87016.0,87000.0,0.04366248]
[1763672947373,0.001,87021.0,87000.0,0.04366248]
[1763672947568,0.002,87021.0,87000.0,0.04366248]
[1763672948031,0.001,87021.0,87000.0,0.04366248]
[1763672948254,0.001,87021.0,87001.0,0.01729196]
[1763672948414,0.001,87016.0,87001.0,0.01729196]
[1763672948615,0.001,87021.0,86998.0,0.01449]
[1763672948616,0.00609,87021.0,86998.0,0.01449]
[1763672948818,0.00609,87021.0,87002.0,0.11476708]
[1763672949012,0.00709,87021.0,87002.0,0.11476708]
[1763672949197,0.05057571,87021.0,86998.0,0.01449]
[1763672949379,0.00509,87020.0,86998.0,0.01449]
[1763672949575,0.001,87016.0,86998.0,0.01449]
[1763672949780,0.00509,87020.0,86998.0,0.01449]
[1763672950025,0.00031499,87000.0,86998.0,0.01449]
[1763672950229,0.001,87016.0,86999.0,0.02118]
[1763672950619,0.03608657,87012.0,86999.0,0.02118]
[1763672951020,0.03608657,87012.0,86987.0,0.03237]
[1763672951304,0.07250423,87012.0,86995.0,0.11476708]
[1763672952199,0.03608657,87012.0,86995.0,0.08276708]
[1763672953150,0.11476708,87011.0,86989.0,0.04702]
[1763672953527,0.03608657,87012.0,86989.0,0.04702]
[1763672953737,0.04117657,87012.0,86989.0,0.04702]
[1763672953952,0.04117657,87012.0,86982.0,0.1493225]
[1763672953953,0.00509,87011.0,86984.0,0.01531]
[1763672954129,0.05,87007.0,86984.0,0.01531]
[1763672954589,0.00509,87006.0,86984.0,0.01531]
[1763672955345,0.00028349,86999.0,86984.0,0.01531]
[1763672955562,0.00509,87006.0,86984.0,0.01531]
[1763672956969,0.00609,87006.0,86984.0,0.01531]
[1763672957210,0.00709,87006.0,86984.0,0.01531]
[1763672957542,0.00509,86985.0,86979.0,0.01498488]
[1763672959008,0.00509,86991.0,86984.0,0.02118]
[1763672959207,0.00509,86991.0,86984.0,0.00018]
[1763672959680,0.00509,87005.0,86984.0,0.00018]
[1763672959882,0.00509,87000.0,86990.0,0.02118]
[1763672960084,0.0105,87013.0,86990.0,0.02118]
[1763672960334,0.0105,87013.0,86990.0,0.05355]
[1763672960525,0.78066927,87030.0,87012.0,0.02118]
[1763672960526,0.0002,87030.0,87012.0,0.02118]
[1763672960697,0.0002,87030.0,87021.0,0.01531]
[1763672961284,0.00100772,87022.0,87021.0,0.01531]
[1763672961708,0.00113263,87022.0,87021.0,0.01531]
[1763672961921,0.00113263,87022.0,87021.0,0.06886]
[1763672962110,0.00113263,87022.0,87021.0,0.075746]
[1763672962111,0.01917287,87022.0,87021.0,0.075746]
[1763672962309,0.01917287,87022.0,87021.0,0.06886]
[1763672963406,0.01917287,87022.0,87021.0,0.10307738]
[1763672963773,0.01917287,87022.0,87021.0,0.06886]
[1763672964156,0.01917287,87022.0,87021.0,0.15695442]
[1763672964369,0.01917287,87022.0,87021.0,0.12920249]
[1763672964570,0.01917287,87022.0,87021.0,0.12019495]
[1763672964770,0.01917287,87022.0,87021.0,0.08803287]
[1763672965114,0.01917287,87022.0,87021.0,0.08903287]
[1763672965556,0.01917287,87022.0,87021.0,0.09003287]
[1763672966273,0.01917287,87022.0,87021.0,0.04286]
[1763672966474,0.01917287,87022.0,87021.0,0.002]
[1763672967323,0.01917287,87022.0,87021.0,0.001]
[1763672967537,0.04022287,87022.0,87021.0,0.001]
[1763672967686,0.04022287,87022.0,87021.0,0.002]
[1763672967888,0.04866216,87022.0,87021.0,0.002]
[1763672968092,0.04866216,87022.0,87021.0,0.001]
[1763672968477,0.04022287,87022.0,87021.0,0.001]
[1763672968682,0.05826201,87022.0,87021.0,0.001]
[1763672969221,0.04122287,87022.0,87021.0,0.001]
[1763672969424,0.04122287,87022.0,87011.0,0.01531]
[1763672969624,0.04121515,87022.0,87011.0,0.01531]
[1763672969861,0.00853852,87021.0,87011.0,0.01531]
[1763672969998,0.02016515,87022.0,87012.0,0.03237]
[1763672970222,0.02016515,87022.0,87014.0,0.0410338]
[1763672970426,0.01916515,87022.0,87016.0,0.0410338]
[1763672970864,0.02016515,87022.0,87016.0,0.0410338]
[1763672971247,0.01816515,87022.0,87016.0,0.0410338]
[1763672971451,0.01916515,87022.0,87016.0,0.0410338]
[1763672971645,0.01916515,87022.0,87011.0,0.19197395]
[1763672971646,0.01916515,87022.0,87013.0,0.0410338]
[1763672971869,0.01916515,87022.0,87011.0,0.13007708]
[1763672971870,0.01916515,87022.0,87011.0,0.17111088]
[1763672972114,0.01816515,87022.0,87011.0,0.17111088]
[1763672972394,0.00012491,87022.0,87011.0,0.17111088]
[1763672972814,0.01803872,87020.0,87011.0,0.17111088]
[1763672973006,0.01803872,87020.0,87012.0,0.0410338]
[1763672973478,0.01803872,87020.0,87012.0,0.01454]
[1763672973689,0.01803872,87020.0,86994.0,0.08274069]
[1763672973690,0.0213,87013.0,87001.0,0.06189687]
[1763672973862,0.0213,87012.0,86992.0,0.06189687]
[1763672974019,0.05075,87012.0,86997.0,0.11476708]
[1763672974439,0.02945,87011.0,86997.0,0.11476708]
[1763672974665,0.02945,87011.0,86987.0,0.06189687]
[1763672974666,0.0301,86998.0,86987.0,0.06189687]
[1763672974896,0.0301,86998.0,86984.0,0.01454]
[1763672975716,0.01804176,86995.0,86984.0,0.01454]
[1763672976391,0.01804176,86995.0,86977.0,0.06189687]
[1763672976392,0.0213,86985.0,86977.0,0.06189687]
[1763672976609,0.01016,86978.0,86972.0,0.11476708]
[1763672976806,0.01593,86994.0,86975.0,0.02959]
[1763672977011,0.03050464,86994.0,86981.0,0.02145]
[1763672977430,0.02945,86993.0,86973.0,0.01454]
[1763672977650,0.06748464,86993.0,86973.0,0.01454]
[1763672977857,0.02945,86993.0,86973.0,0.01454]
[1763672978079,0.03150464,86994.0,86973.0,0.01454]
[1763672978297,0.03150464,86994.0,86972.0,0.00033488]
[1763672978561,0.03723,86973.0,86972.0,0.00033488]
[1763672979946,0.06668,86973.0,86972.0,0.00033488]
[1763672980592,0.06668,86973.0,86955.0,0.00317791]
[1763672980818,0.06768,86973.0,86955.0,0.00359454]
[1763672981313,0.001,86973.0,86972.0,0.01454]
[1763672981539,0.002,86973.0,86972.0,0.01454]
[1763672981932,0.001,86973.0,86968.0,0.11476708]
[1763672982384,0.001,86973.0,86969.0,0.01454]
[1763672982615,0.02945,86972.0,86956.0,0.02959]
[1763672982849,0.02945,86972.0,86955.0,0.00359454]
[1763672983289,0.01804668,86969.0,86955.0,0.00359454]
[1763672983521,0.02945,86972.0,86955.0,0.00359454]